bitfinex-derivatives/quotes_SOLF0:USTF0_20250319
["timestamp","ask_amount","ask_price","bid_price","bid_amount"]
[1742381898975,7.8789,126.92,126.89,47.9664469]
[1742381900073,7.8796,126.91,126.88,47.9664469]
[1742381900277,7.8796,126.91,126.89,0.05609891]
[1742381901179,18.1464469,126.9,126.89,0.05609891]
[1742381901376,10.2664469,126.9,126.85,80.84150622]
[1742381901573,10.2664469,126.88,126.85,80.84150622]
[1742381901778,7.8813,126.88,126.85,80.84150622]
[1742381902182,7.882,126.87,126.85,80.84150622]
[1742381902680,7.9371557,126.87,126.85,80.89648627]
[1742381902871,7.9371557,126.87,126.85,43.21648627]
[1742381903288,0.0551557,126.87,126.85,43.21648627]
[1742381904084,7.9370557,126.87,126.85,43.21648627]
[1742381904294,7.9370557,126.87,126.85,0.05498005]
[1742381904485,0.0551557,126.87,126.85,0.05498005]
[1742381905692,7.9372557,126.87,126.85,0.05498005]
[1742381906586,7.8825,126.86,126.85,0.05498005]
[1742381906781,18.1489469,126.86,126.85,0.05498005]
[1742381907389,7.8825,126.86,126.85,0.05498005]
[1742381907889,0.0551557,126.87,126.85,0.05498005]
[1742381908685,7.9370557,126.87,126.85,0.05498005]
[1742381909794,0.0551557,126.87,126.85,0.05498005]
[1742381910592,0.0551557,126.87,126.86,10.2664469]
[1742381912599,0.0551557,126.87,126.85,10.32142695]
[1742381912797,10.3216026,126.87,126.85,0.05498005]
[1742381912998,10.2664469,126.86,126.85,0.05498005]
[1742381913302,18.1489469,126.86,126.85,0.05498005]
[1742381916197,7.8825,126.86,126.85,0.05498005]
[1742381916896,18.2038026,126.87,126.85,0.05498005]
[1742381917097,7.9373557,126.87,126.85,0.05498005]
[1742381918499,7.8825,126.86,126.85,0.05498005]
[1742381919196,18.1489469,126.86,126.85,0.05498005]
[1742381923600,7.8853,126.82,126.79,91.04795312]
[1742381923989,7.8847,126.83,126.79,91.04795312]
[1742381924194,7.8847,126.83,126.8,10.2664469]
[1742381924802,7.8851,126.82,126.8,10.31655964]
[1742381925594,7.94456138,126.83,126.8,10.31655964]
[1742381926104,7.885,126.82,126.8,10.31655964]
[1742381928404,7.885,126.82,126.8,0.05011274]
[1742381931207,7.8856,126.81,126.8,0.05011274]
[1742381933603,18.1518469,126.82,126.8,0.05011274]
[1742381933798,10.32630828,126.83,126.8,0.05011274]
[1742381934010,7.8853,126.82,126.8,0.05011274]
[1742381937613,7.8856,126.81,126.8,0.05011274]
[1742381941012,18.1520469,126.81,126.8,0.05011274]
[1742381956131,10.2664469,126.81,126.75,43.16150622]
[1742381956323,10.2664469,126.78,126.75,43.16150622]
[1742381956725,7.8887,126.76,126.75,43.16150622]
[1742381958228,18.1551469,126.76,126.75,43.16150622]
[1742381958833,7.8893,126.75,126.74,6.68354253]
[1742381960430,10.2664469,126.76,126.74,6.68354253]
[1742381961432,10.32294866,126.77,126.74,6.68354253]
[1742381961623,10.32294866,126.77,126.74,0.05208114]
[1742381962629,0.05650176,126.77,126.75,10.2664469]
[1742381962822,0.05650176,126.77,126.76,10.2664469]
[1742381968735,10.2664469,126.81,126.76,10.2664469]
[1742381969233,22.5048469,126.82,126.77,47.7064469]
[1742381969836,0.05190536,126.81,126.78,0.04972104]
[1742381970136,10.31835226,126.81,126.78,0.04972104]
[1742381973037,0.05190536,126.81,126.78,10.31616794]
[1742381974651,0.05190536,126.81,126.79,10.2664469]
[1742381976041,0.05190536,126.81,126.8,10.2664469]
[1742381976241,0.05190536,126.81,126.8,47.6864469]
[1742381977834,10.2664469,126.85,126.8,47.6864469]
[1742381978038,10.2664469,126.85,126.81,10.2664469]
[1742381978641,18.1492469,126.86,126.81,10.2664469]
[1742381978843,0.05638103,126.85,126.82,0.06026071]
[1742381979943,10.32282793,126.85,126.82,0.06026071]
[1742381980545,18.20682793,126.85,126.82,0.06026071]
[1742381981841,18.1512469,126.84,126.82,0.06026071]
[1742381985045,10.2664469,126.84,126.82,0.06026071]
[1742381987045,18.1510469,126.84,126.82,0.06026071]
[1742381987648,7.8846,126.84,126.82,0.06026071]
[1742381991457,7.8852,126.83,126.82,0.06026071]
[1742381992446,7.8866,126.81,126.78,10.2664469]
[1742381993548,0.05888939,126.81,126.78,10.32669482]
[1742381995152,7.94528939,126.81,126.78,10.32669482]
[1742381997247,0.05888939,126.81,126.78,10.32669482]
[1742381997856,7.94568939,126.81,126.78,10.32669482]
[1742381999155,0.05888939,126.81,126.78,10.32669482]
[1742382000457,0.05888939,126.81,126.79,10.2664469]
[1742382001949,0.05888939,126.81,126.78,0.06024792]
[1742382001950,0.05888939,126.81,126.78,10.32669482]
[1742382002353,0.05888939,126.81,126.79,10.2664469]
[1742382002848,0.05888939,126.81,126.8,10.2664469]
[1742382003049,41.6156,126.87,126.8,10.2664469]
[1742382003254,41.6156,126.87,126.84,10.2664469]
[1742382003449,4.3156,126.87,126.85,10.2664469]
[1742382003651,276.2115,126.88,126.86,10.2664469]
[1742382003957,272.0,126.88,126.86,10.2664469]
[1742382004255,319.62633981,126.88,126.83,10.2664469]
[1742382004455,10.2664469,126.87,126.83,10.2664469]
[1742382004855,7.883,126.87,126.83,10.2664469]
[1742382005252,272.05989291,126.88,126.86,10.2664469]
[1742382006662,272.05989291,126.88,126.87,10.2664469]
[1742382006982,0.05989291,126.88,126.87,10.2664469]
[1742382007662,0.05989291,126.88,126.85,37.28]
[1742382007663,271.98,126.93,126.91,10.2664469]
[1742382008558,47.5464469,126.96,126.91,10.2664469]
[1742382008758,0.05473466,126.93,126.91,10.32215746]
[1742382008966,0.05473466,126.93,126.92,10.2664469]
[1742382010056,0.05473466,126.93,126.92,47.5264469]
[1742382010563,288.2445,126.98,126.92,47.5264469]
[1742382010859,288.2445,126.98,126.94,10.2664469]
[1742382011065,7.8765,126.97,126.94,10.2664469]
[1742382011359,7.8765,126.97,126.92,37.26]
[1742382011562,10.32353729,126.97,126.94,0.05042761]
[1742382012261,18.20033729,126.97,126.94,0.05042761]
[1742382012663,10.32353729,126.97,126.94,0.05042761]
[1742382012865,0.05709039,126.97,126.94,10.31687451]
[1742382013062,0.05709039,126.97,126.95,10.2664469]
[1742382013266,0.05709039,126.97,126.96,10.2664469]
[1742382014159,0.05709039,126.97,126.94,10.31687451]
[1742382014359,0.05709039,126.97,126.94,0.05042761]
[1742382015467,10.2664469,126.96,126.94,0.05042761]
[1742382015667,10.2664469,126.95,126.9,10.2664469]
[1742382015865,10.2664469,126.95,126.86,4.3636]
[1742382015866,10.2664469,126.93,126.89,10.2664469]
[1742382016166,10.2664469,126.91,126.86,10.2664469]
[1742382016565,10.2664469,126.89,126.88,43.54654646]
[1742382016761,18.1478469,126.89,126.88,43.54654646]
[1742382017067,18.1478469,126.89,126.88,36.97104646]
[1742382017266,7.8814,126.89,126.88,36.97104646]
[1742382017464,53.40704889,126.9,126.88,23.82004646]
[1742382019172,53.40704889,126.9,126.87,0.05070197]
[1742382019575,37.29915189,126.9,126.87,0.05070197]
[1742382019766,53.40704889,126.9,126.87,0.05070197]
[1742382020072,16.107897,126.88,126.8,12.7086]
[1742382020277,37.22,126.87,126.8,12.7086]
[1742382020471,271.82,126.86,126.8,12.7086]
[1742382021275,0.05595903,126.84,126.82,0.05481042]
[1742382022776,37.27595903,126.84,126.82,0.05481042]
[1742382023365,53.38385603,126.84,126.82,0.05481042]
[1742382023576,53.38385603,126.84,126.76,10.88663661]
[1742382023777,53.327897,126.84,126.76,10.88663661]
[1742382024474,53.327897,126.84,126.76,26.99453361]
[1742382024671,37.22,126.84,126.76,26.99453361]
[1742382024866,0.06060126,126.81,126.79,0.05268475]
[1742382027174,309.12,126.8,126.73,20.065897]
[1742382027572,309.12,126.8,126.73,57.285897]
[1742382027767,325.227897,126.8,126.72,10.88663661]
[1742382027973,325.227897,126.8,126.72,48.10663661]
[1742382027974,4.1442,126.79,126.72,48.10663661]
[1742382028375,0.05208905,126.77,126.74,0.04251063]
[1742382028975,37.27208905,126.77,126.74,0.04251063]
[1742382030672,16.107897,126.76,126.72,10.88663661]
[1742382031384,37.27208905,126.77,126.69,16.107897]
[1742382031679,37.22,126.77,126.68,37.22]
[1742382032179,0.05178205,126.74,126.68,37.22]
[1742382036781,0.05178205,126.74,126.67,16.107897]
[1742382038281,16.15967905,126.74,126.66,8.2724]
[1742382038480,16.107897,126.74,126.65,4.0297]
[1742382038676,0.0550064,126.71,126.65,41.2497]
[1742382038881,37.2750064,126.71,126.65,41.2497]
[1742382039083,37.2750064,126.71,126.64,16.107897]
[1742382040282,37.2750064,126.71,126.65,16.107897]
[1742382040481,37.22,126.71,126.65,16.107897]
[1742382040687,0.05526969,126.69,126.67,16.107897]
[1742382041084,0.05526969,126.69,126.67,29.056297]
[1742382041774,0.05526969,126.69,126.67,8.6624]
[1742382043083,0.05526969,126.69,126.66,37.22]
[1742382044383,0.05526969,126.69,126.65,16.107897]
[1742382044987,0.05526969,126.69,126.64,37.22]
[1742382045378,0.05526969,126.69,126.63,8.3134]
[1742382046980,0.05526969,126.69,126.62,41.506]
[1742382047184,37.22,126.68,126.62,41.506]
[1742382047483,37.22,126.68,126.6,37.22]
[1742382047684,0.0548682,126.66,126.6,37.22]
[1742382049684,0.0548682,126.66,126.59,24.353097]
[1742382049885,0.0548682,126.66,126.59,61.573097]
[1742382050180,37.22,126.65,126.59,24.353097]
[1742382050590,0.04989177,126.63,126.59,24.353097]
[1742382051086,0.04989177,126.63,126.61,16.107897]
[1742382051282,0.04989177,126.63,126.61,53.327897]
[1742382052386,0.04989177,126.63,126.61,37.22]
[1742382056091,0.04989177,126.63,126.59,53.327897]
[1742382057289,53.327897,126.68,126.59,53.327897]
[1742382058090,53.327897,126.68,126.59,16.107897]
[1742382058493,0.05695977,126.65,126.62,0.04989177]
[1742382060195,272.2,126.7,126.63,16.107897]
[1742382060392,272.2,126.7,126.64,37.22]
[1742382060592,272.2,126.7,126.65,16.107897]
[1742382061291,0.05164301,126.69,126.67,16.107897]
[1742382061497,309.56,126.76,126.68,49.5441485]
[1742382061699,309.56,126.76,126.7,8.0539485]
[1742382061900,272.34,126.76,126.7,8.0539485]
[1742382062686,0.05321406,126.74,126.72,0.05170623]
[1742382068412,8.10716256,126.74,126.72,0.05170623]
[1742382069422,0.05321406,126.74,126.72,0.05170623]
[1742382082425,37.21321406,126.74,126.72,0.05170623]
[1742382084933,45.26716256,126.74,126.66,37.16]
[1742382085134,45.2139485,126.74,126.66,37.16]
[1742382086227,0.05086,126.71,126.69,0.05987183]
[1742382086625,272.34,126.76,126.69,53.32776883]
[1742382086825,272.34,126.76,126.71,16.107897]
[1742382087031,272.34,126.76,126.72,37.16]
[1742382087833,0.059677,126.75,126.73,0.05202682]
[1742382088821,37.14,126.8,126.73,16.15992382]
[1742382089230,272.22,126.81,126.73,16.15992382]
[1742382089429,272.22,126.81,126.73,16.107897]
[1742382089935,272.22,126.81,126.75,16.107897]
[1742382090133,0.05592922,126.78,126.76,37.18983821]
[1742382091435,0.05592922,126.78,126.76,0.04983821]
[1742382091633,37.19592922,126.78,126.76,0.04983821]
[1742382094633,53.30382622,126.78,126.76,0.04983821]
[1742382095235,37.19592922,126.78,126.76,0.04983821]
[1742382096532,53.30382622,126.78,126.69,64.11453361]
[1742382096730,16.107897,126.74,126.67,64.90385879]
[1742382096942,13.24396008,126.7,126.69,120.09673967]
[1742382097133,50.36396008,126.7,126.68,64.90385879]
[1742382097329,58.26396008,126.7,126.67,217.73273233]
[1742382097534,16.107897,126.68,126.66,272.16591541]
[1742382097736,309.28,126.67,126.66,272.16591541]
[1742382097935,309.28,126.67,126.66,272.22286332]
[1742382099444,309.28,126.67,126.66,0.05694791]
[1742382100636,272.16,126.67,126.66,0.05694791]
[1742382109040,297.71790882,126.67,126.61,8.5544]
[1742382109444,25.85823274,126.66,126.59,3.9872]
[1742382109743,37.12,126.65,126.59,3.9872]
[1742382110244,0.05342245,126.63,126.61,0.0574649]
[1742382114149,0.05342245,126.63,126.59,3.9872]
[1742382115039,47.97661902,126.66,126.59,41.0872]
[1742382116044,10.87661902,126.66,126.59,41.0872]
[1742382116243,0.05836955,126.64,126.61,0.05828073]
[1742382118153,37.15836955,126.64,126.61,0.05828073]
[1742382122957,0.05836955,126.64,126.61,0.05828073]
[1742382125155,37.08,126.63,126.61,0.05828073]
[1742382125357,53.24539076,126.63,126.61,0.05828073]
[1742382126158,53.24539076,126.63,126.56,8.2397]
[1742382126355,16.16539076,126.6,126.56,8.2397]
[1742382126664,309.48,126.59,126.56,8.2397]
[1742382127358,309.53729348,126.59,126.56,8.28791602]
[1742382128159,309.53729348,126.59,126.56,0.04821602]
[1742382129858,16.16539076,126.58,126.56,0.04821602]
[1742382132257,16.16539076,126.58,126.5,4.0106]
[1742382132457,16.16539076,126.56,126.5,4.0106]
[1742382132659,37.08,126.55,126.5,8.0364]
[1742382133659,0.0592625,126.54,126.5,8.0364]
[1742382133859,11.00240412,126.54,126.5,8.0364]
[1742382134659,11.00240412,126.54,126.5,24.20179076]
[1742382134862,210.47953062,126.55,126.51,37.08]
[1742382135563,210.47953062,126.55,126.5,8.0364]
[1742382135959,120.52544957,126.56,126.5,8.0364]
[1742382136159,0.05488883,126.54,126.51,0.0592625]
[1742382139271,37.11488883,126.54,126.51,0.0592625]
[1742382141366,0.05488883,126.54,126.51,0.0592625]
[1742382143466,0.05488883,126.54,126.52,8.08269538]
[1742382143664,13.06122487,126.55,126.53,8.08269538]
[1742382143965,6.47172487,126.55,126.52,8.08269538]
[1742382144470,115.2661306,126.56,126.53,8.08269538]
[1742382144764,95.55121818,126.56,126.55,8.08269538]
[1742382144967,88.46241818,126.56,126.55,8.08269538]
[1742382145163,82.29771818,126.56,126.55,8.08269538]
[1742382145370,156.79137194,126.58,126.55,15.98269538]
[1742382145671,156.79137194,126.58,126.57,16.16539076]
[1742382145672,151.32787809,126.58,126.57,16.16539076]
[1742382145863,151.32787809,126.58,126.57,53.22539076]
[1742382146267,157.71126819,126.61,126.57,53.22539076]
[1742382146470,0.05234539,126.59,126.57,53.22539076]
[1742382146871,0.05234539,126.59,126.58,0.05307247]
[1742382155374,272.58,126.66,126.58,7.95307247]
[1742382155567,272.58,126.66,126.61,16.16539076]
[1742382155771,272.58,126.66,126.62,37.02]
[1742382156477,0.05984628,126.65,126.63,0.05400674]
[1742382158984,0.05984628,126.65,126.6,37.02]
[1742382159473,0.05984628,126.65,126.57,16.16539076]
[1742382159674,272.58,126.66,126.58,37.02]
[1742382160066,272.58,126.66,126.61,0.05366887]
[1742382160271,0.05414098,126.63,126.61,0.05366887]
[1742382161077,0.05414098,126.63,126.61,37.07366887]
[1742382161471,0.05414098,126.63,126.61,53.23905963]
[1742382172681,0.05414098,126.63,126.61,0.05366887]
[1742382172880,0.05414098,126.63,126.61,37.03366887]
[1742382173075,0.05414098,126.63,126.61,0.05366887]
[1742382177183,0.05414098,126.63,126.61,16.21905963]
[1742382179589,0.05414098,126.63,126.61,0.05366887]
[1742382180083,0.05414098,126.63,126.61,37.03366887]
[1742382181987,0.05414098,126.63,126.61,0.05366887]
[1742382182485,0.05414098,126.63,126.58,43.63722964]
[1742382182891,53.17953174,126.63,126.58,43.63722964]
[1742382183186,4.3245,126.62,126.58,43.63722964]
[1742382183688,4.3245,126.62,126.59,0.05335354]
[1742382183881,4.3245,126.62,126.58,43.63722964]
[1742382184993,4.3245,126.62,126.59,0.05454251]
[1742382185285,4.3245,126.62,126.58,43.63722964]
[1742382185692,16.16539076,126.61,126.55,47.85720278]
[1742382185891,272.36,126.6,126.55,10.89720278]
[1742382186285,4.16832507,126.59,126.55,10.89720278]
[1742382188090,4.16832507,126.59,126.53,36.96]
[1742382188795,4.16832507,126.59,126.53,53.12539076]
[1742382190595,4.1719,126.58,126.53,53.12539076]
[1742382194897,0.05982507,126.59,126.53,53.12539076]
[1742382195197,0.05982507,126.59,126.55,16.16539076]
[1742382195392,0.05982507,126.59,126.56,36.96]
[1742382199199,0.05982507,126.59,126.57,16.16539076]
[1742382200803,272.46,126.63,126.57,16.16539076]
[1742382200997,272.46,126.63,126.6,16.16539076]
[1742382201199,272.46,126.63,126.61,36.96]
[1742382201898,272.46,126.63,126.61,37.01116326]
[1742382202202,272.51686149,126.63,126.61,37.01116326]
[1742382202405,0.05686149,126.63,126.61,0.05116326]
[1742382202596,0.05686149,126.63,126.59,36.96]
[1742382202792,0.05686149,126.63,126.57,36.96]
[1742382202998,288.60539076,126.65,126.57,36.96]
[1742382203594,16.16539076,126.61,126.53,96.7626204]
[1742382203806,7.2637,126.6,126.54,43.63722964]
[1742382204305,0.05254177,126.58,126.54,43.63722964]
[1742382205401,0.05254177,126.58,126.54,80.59722964]
[1742382206407,0.05254177,126.58,126.54,36.96]
[1742382207117,0.05254177,126.58,126.53,16.16539076]
[1742382207405,0.05254177,126.58,126.53,53.10539076]
[1742382209403,0.05254177,126.58,126.51,59.8026204]
[1742382209606,36.99254177,126.58,126.52,36.94]
[1742382209909,36.99254177,126.58,126.51,43.63722964]
[1742382210707,16.16539076,126.57,126.51,43.63722964]
[1742382211308,0.05926818,126.55,126.51,43.63722964]
[1742382211703,0.05926818,126.55,126.49,96.7426204]
[1742382214212,36.99926818,126.55,126.49,96.7426204]
[1742382214409,5.9642,126.54,126.49,53.10539076]
[1742382214815,5.9642,126.54,126.49,16.16539076]
[1742382218717,0.05926818,126.55,126.49,16.16539076]
[1742382219122,0.05926818,126.55,126.51,16.16539076]
[1742382219317,0.05926818,126.55,126.51,53.10539076]
[1742382219719,0.05926818,126.55,126.53,16.16539076]
[1742382220115,0.05926818,126.55,126.54,36.94]
[1742382221320,0.05926818,126.55,126.51,53.10539076]
[1742382221627,0.05926818,126.55,126.51,36.94]
[1742382225225,0.05926818,126.55,126.49,53.10539076]
[1742382225926,36.99926818,126.55,126.49,16.16539076]
[1742382226425,36.99926818,126.55,126.48,36.94]
[1742382227523,36.99926818,126.55,126.47,16.16539076]
[1742382227725,36.94,126.55,126.48,36.94]
[1742382228027,0.05824287,126.52,126.48,36.94]
[1742382234532,0.05824287,126.52,126.47,16.16539076]
[1742382236433,2.94254287,126.52,126.47,16.16539076]
[1742382238034,39.86254287,126.52,126.45,53.08539076]
[1742382238335,2.8518,126.51,126.45,53.08539076]
[1742382238534,0.05689458,126.5,126.45,53.08539076]
[1742382239129,0.05689458,126.5,126.44,36.92]
[1742382239936,0.05689458,126.5,126.45,16.16539076]
[1742382249236,0.05689458,126.5,126.48,10.36514344]
[1742382251138,0.05689458,126.5,126.47,53.09433078]
[1742382254437,0.05689458,126.5,126.47,36.9]
[1742382266441,0.05689458,126.5,126.45,59.83156042]
[1742382266639,0.05689458,126.5,126.45,80.51722964]
[1742382267845,0.05689458,126.5,126.45,96.71156042]
[1742382268046,0.05689458,126.5,126.47,16.19433078]
[1742382271247,0.05689458,126.5,126.48,10.3660289]
[1742382272341,0.05689458,126.5,126.48,47.2260289]
[1742382280043,272.64,126.54,126.48,47.2260289]
[1742382280250,4.3685,126.56,126.52,10.3660289]
[1742382280444,4.3685,126.56,126.54,10.3660289]
[1742382280839,5.92833986,126.61,126.54,10.3660289]
[1742382280840,47.2060289,126.61,126.54,10.3660289]
[1742382281049,51.4673289,126.61,126.56,10.3660289]
[1742382281347,0.0550155,126.59,126.56,10.41660316]
[1742382290557,10.4210444,126.59,126.56,0.05057426]
[1742382294055,47.2210444,126.59,126.56,0.05057426]
[1742382294951,10.3660289,126.57,126.48,10.89720278]
[1742382295158,10.3660289,126.55,126.5,10.3660289]
[1742382295352,10.3660289,126.55,126.48,47.69720278]
[1742382295660,10.3660289,126.55,126.5,10.3660289]
[1742382296061,10.3660289,126.51,126.48,10.89720278]
[1742382296253,47.1460289,126.51,126.48,10.89720278]
[1742382296454,47.1988815,126.51,126.48,10.89720278]
[1742382297259,36.8328526,126.51,126.45,43.63722964]
[1742382298557,0.0528526,126.51,126.45,59.84110174]
[1742382298761,0.0528526,126.51,126.49,16.2038721]
[1742382298962,0.0528526,126.51,126.5,36.8]
[1742382300256,0.0528526,126.51,126.49,16.2038721]
[1742382300457,0.0528526,126.51,126.48,36.78]
[1742382301054,0.0528526,126.51,126.45,16.2038721]
[1742382301258,36.78,126.52,126.45,16.2038721]
[1742382301461,0.05701128,126.49,126.45,27.10107488]
[1742382301661,0.05701128,126.49,126.45,63.88107488]
[1742382302265,0.05701128,126.49,126.45,47.67720278]
[1742382302865,0.05701128,126.49,126.45,10.89720278]
[1742382303060,0.05701128,126.49,126.44,36.78]
[1742382303862,36.83701128,126.49,126.43,36.78]
[1742382304065,4.3308,126.48,126.42,8.10193605]
[1742382304466,0.05627939,126.46,126.41,43.63722964]
[1742382304668,36.83627939,126.46,126.41,43.63722964]
[1742382305957,2.193,126.45,126.41,43.63722964]
[1742382306965,2.193,126.45,126.41,40.34202964]
[1742382307272,2.193,126.45,126.38,37.04682964]
[1742382307273,16.2038721,126.44,126.38,37.04682964]
[1742382307471,309.44,126.43,126.38,37.04682964]
[1742382307659,0.05892222,126.42,126.38,37.04682964]
[1742382307859,2.22112222,126.42,126.38,37.04682964]
[1742382311771,2.22112222,126.42,126.37,16.2038721]
[1742382312671,2.22112222,126.42,126.36,36.78]
[1742382312970,2.1622,126.42,126.36,36.78]
[1742382313168,0.05330905,126.4,126.37,16.2038721]
[1742382314061,0.05330905,126.4,126.39,16.2038721]
[1742382314262,0.05330905,126.4,126.39,52.9838721]
[1742382314461,2.193,126.45,126.41,16.2038721]
[1742382315579,2.193,126.45,126.39,36.78]
[1742382315580,0.04997748,126.44,126.42,0.05616427]
[1742382315871,36.82997748,126.44,126.42,0.05616427]
[1742382316373,0.04997748,126.44,126.42,0.05616427]
[1742382322972,36.76,126.43,126.42,0.05616427]
[1742382323477,36.76,126.43,126.37,52.9638721]
[1742382323673,38.7605,126.47,126.39,16.2038721]
[1742382324179,38.7605,126.47,126.41,16.2038721]
[1742382324679,0.05920118,126.45,126.41,16.2038721]
[1742382324985,0.05920118,126.45,126.43,16.2038721]
[1742382325474,0.05920118,126.45,126.4,36.76]
[1742382325475,0.05920118,126.45,126.41,16.2038721]
[1742382326281,0.05920118,126.45,126.43,16.2038721]
[1742382326484,0.05920118,126.45,126.43,52.9638721]
[1742382327278,18.3576721,126.53,126.45,16.2038721]
[1742382327581,36.76,126.51,126.45,16.2038721]
[1742382327784,36.74,126.51,126.45,16.2038721]
[1742382328284,272.8,126.52,126.45,16.2038721]
[1742382328580,0.05169818,126.49,126.47,0.05418622]
[1742382335585,0.05169818,126.49,126.41,50.93329896]
[1742382335787,36.72,126.48,126.42,36.72]
[1742382336786,0.05778727,126.46,126.44,0.0204545]
[1742382336987,36.72,126.5,126.43,16.2038721]
[1742382337282,0.0529701,126.46,126.44,0.0204545]
[1742382337489,0.0529701,126.46,126.45,52.9238721]
[1742382341895,0.0529701,126.46,126.44,0.0204545]
[1742382345796,2.002,126.51,126.45,16.2038721]
[1742382346003,2.002,126.51,126.46,36.7]
[1742382346903,0.05732552,126.5,126.47,0.05253369]
[1742382349008,16.2038721,126.49,126.41,138.24003727]
[1742382349210,38.7905,126.48,126.43,32.74002686]
[1742382350105,0.05368548,126.47,126.44,0.02089092]
[1742382361813,0.05368548,126.47,126.45,16.2038721]
[1742382364012,2.002,126.51,126.45,16.2038721]
[1742382364218,2.002,126.51,126.48,16.2038721]
[1742382365221,2.05270762,126.51,126.48,16.25960699]
[1742382367921,2.05270762,126.51,126.48,0.05573489]
[1742382376334,42.93310762,126.51,126.48,0.05573489]
[1742382378433,6.33310762,126.51,126.48,0.05573489]
[1742382378631,2.05270762,126.51,126.48,0.05573489]
[1742382380737,0.05070762,126.51,126.49,16.2038721]
[1742382381536,0.05070762,126.51,126.48,0.05573489]
[1742382384734,0.05070762,126.51,126.49,16.2038721]
[1742382385536,0.05070762,126.51,126.5,36.58]
[1742382393140,0.05070762,126.51,126.5,41.76113957]
[1742382393340,0.05070762,126.51,126.5,46.94227914]
[1742382394040,0.05070762,126.51,126.5,10.36227914]
[1742382394641,0.05070762,126.51,126.5,46.92227914]
[1742382394836,38.6098,126.56,126.5,46.92227914]
[1742382395141,38.6098,126.56,126.53,10.36227914]
[1742382395541,2.0498,126.56,126.53,10.36227914]
[1742382396039,2.10194471,126.56,126.53,10.42210736]
[1742382396239,2.10194471,126.56,126.55,10.36227914]
[1742382396741,0.05214471,126.56,126.55,10.36227914]
[1742382398841,0.05214471,126.56,126.53,0.05982822]
[1742382399038,0.05214471,126.56,126.54,10.36227914]
[1742382399237,0.05214471,126.56,126.53,0.05982822]
[1742382402246,0.05214471,126.56,126.53,36.57982822]
[1742382404549,0.05214471,126.56,126.53,0.05982822]
[1742382405346,0.05214471,126.56,126.54,16.18202488]
[1742382406646,0.05214471,126.56,126.53,0.05982822]
[1742382413855,0.05214471,126.56,126.53,36.55982822]
[1742382414658,0.05214471,126.56,126.54,16.18202488]
[1742382415354,0.05214471,126.56,126.53,0.05982822]
[1742382420760,0.05214471,126.56,126.54,16.18202488]
[1742382421861,0.05214471,126.56,126.53,0.05982822]
[1742382424168,0.05214471,126.56,126.54,16.18202488]
[1742382426366,0.05214471,126.56,126.53,0.05982822]
[1742382431976,8.09101244,126.54,126.48,43.73081564]
[1742382432176,40.7218,126.53,126.48,43.73081564]
[1742382433178,0.0565487,126.52,126.49,0.05127806]
[1742382436879,0.0565487,126.52,126.51,8.09101244]
[1742382437084,2.138,126.57,126.51,16.18202488]
[1742382437381,2.138,126.57,126.54,16.18202488]
[1742382438084,2.138,126.57,126.53,36.44]
[1742382438291,2.1945666,126.57,126.54,0.05575245]
[1742382438580,2.1945666,126.57,126.5,52.62202488]
[1742382438581,2.138,126.57,126.5,52.62202488]
[1742382438782,2.19513412,126.57,126.54,0.05010357]
[1742382441980,2.19513412,126.57,126.49,10.99078878]
[1742382442173,18.377159,126.57,126.49,10.99078878]
[1742382442379,18.32002488,126.57,126.49,10.99078878]
[1742382443285,18.32002488,126.57,126.52,0.0591248]
[1742382443286,0.053206,126.54,126.52,0.0591248]
[1742382463095,0.053206,126.54,126.53,10.35849086]
[1742382463994,0.053206,126.54,126.52,0.0591248]
[1742382464197,12.43729686,126.54,126.5,10.35849086]
[1742382465196,2.078806,126.54,126.48,80.15081564]
[1742382466799,2.078806,126.54,126.48,36.42]
[1742382467200,2.078806,126.54,126.47,52.61504092]
[1742382469400,2.0512,126.53,126.47,16.19504092]
[1742382469799,2.0442,126.52,126.47,16.19504092]
[1742382470100,0.05528109,126.51,126.47,16.19504092]
[1742382478713,0.05528109,126.51,126.45,27.1858297]
[1742382478904,0.05528109,126.51,126.45,10.99078878]
[1742382482904,0.05528109,126.51,126.43,16.19504092]
[1742382483099,327.27924092,126.52,126.43,16.19504092]
[1742382483297,0.05098139,126.48,126.43,16.19504092]
[1742382487113,0.05098139,126.48,126.45,10.37173444]
[1742382489209,0.05098139,126.48,126.47,10.37173444]
[1742382495616,274.6842,126.52,126.47,10.37173444]
[1742382495816,272.64,126.52,126.5,10.37173444]
[1742382496906,272.69829168,126.52,126.5,10.42855693]
[1742382498005,0.05829168,126.52,126.5,10.42855693]
[1742382498213,0.05829168,126.52,126.51,36.38]